[Event "Titled Tuesday Blitz February 14 Late 2023"]
[White "Predke, Alexandr"]
[Black "Atanasov, Anthony"]
[WhiteFideId "24107581"]
[BlackFideId "2623897"]
[WhiteElo "2685"]
[BlackElo "2368"]
[Result "0-1"]
[Round "02"]
[TimeControl "180+2"]
[Date "2023.02.14"]
[WhiteClock "0:00:04"]
[BlackClock "0:00:08"]

1. e4 {[%clk 0:03:00]}  e5 {[%clk 0:02:53]} 2. Nf3 {[%clk 0:02:59]}  Nf6 {[%clk 0:02:54]} 3. Qe2 {[%clk 0:02:57]}  Bd6 {[%clk 0:02:41]} 4. d4 {[%clk 0:02:55]}  exd4 {[%clk 0:02:42]} 5. Nxd4 {[%clk 0:02:46]}  O-O {[%clk 0:02:41]} 6. Nc3 {[%clk 0:02:46]}  Re8 {[%clk 0:02:40]} 7. Bd2 {[%clk 0:02:37]}  Be5 {[%clk 0:02:39]} 8. Qd3 {[%clk 0:02:11]}  d5 {[%clk 0:02:21]} 9. Nde2 {[%clk 0:02:10]}  dxe4 {[%clk 0:02:13]} 10. Qxd8 {[%clk 0:02:08]}  Rxd8 {[%clk 0:02:14]} 11. O-O-O {[%clk 0:02:05]}  Nc6 {[%clk 0:02:01]} 12. h3 {[%clk 0:02:05]}  h5 {[%clk 0:01:53]} 13. g3 {[%clk 0:02:05]}  Bf5 {[%clk 0:01:46]} 14. Bg2 {[%clk 0:02:06]}  Nb4 {[%clk 0:01:45]} 15. a3 {[%clk 0:02:04]}  Nxc2 {[%clk 0:01:39]} 16. g4 {[%clk 0:01:51]}  hxg4 {[%clk 0:01:32]} 17. hxg4 {[%clk 0:01:52]}  Nxg4 {[%clk 0:01:30]} 18. Bxe4 {[%clk 0:01:50]}  Bxe4 {[%clk 0:00:56]} 19. Nxe4 {[%clk 0:01:51]}  Nd4 {[%clk 0:00:53]} 20. Nxd4 {[%clk 0:01:33]}  Rxd4 {[%clk 0:00:52]} 21. f3 {[%clk 0:01:33]}  Rad8 {[%clk 0:00:51]} 22. Rh5 {[%clk 0:00:43]}  g6 {[%clk 0:00:14]} 23. Rg5 {[%clk 0:00:43]}  Rc4+ {[%clk 0:00:03]} 24. Kb1 {[%clk 0:00:37]}  Ne3 {[%clk 0:00:03]} 25. Rh1 {[%clk 0:00:19]}  Bf4 {[%clk 0:00:02]} 26. Nf6+ {[%clk 0:00:12]}  Kg7 {[%clk 0:00:02]} 27. Nh5+ {[%clk 0:00:12]}  Kf8 {[%clk 0:00:02]} 28. Nxf4 {[%clk 0:00:12]}  Rxd2 {[%clk 0:00:02]} 29. Rh8+ {[%clk 0:00:07]}  Kg7 {[%clk 0:00:02]} 30. Re8 {[%clk 0:00:06]}  Rd1+ {[%clk 0:00:01]} 31. Ka2 {[%clk 0:00:05]}  Rxf4 {[%clk 0:00:02]} 32. Rxe3 {[%clk 0:00:04]}  Rf1 {[%clk 0:00:03]} 33. Re7 {[%clk 0:00:03]}  R1xf3 {[%clk 0:00:03]} 34. Rxc7 {[%clk 0:00:04]}  b5 {[%clk 0:00:03]} 35. Rxb5 {[%clk 0:00:02]}  a6 {[%clk 0:00:03]} 36. Ra5 {[%clk 0:00:02]}  Rf6 {[%clk 0:00:03]} 37. Ra7 {[%clk 0:00:01]}  R3f5 {[%clk 0:00:03]} 38. R5xa6 {[%clk 0:00:01]}  Rxa6 {[%clk 0:00:03]} 39. Rxa6 {[%clk 0:00:02]}  g5 {[%clk 0:00:04]} 40. Ra4 {[%clk 0:00:02]}  Re5 {[%clk 0:00:02]} 41. Rg4 {[%clk 0:00:02]}  Kg6 {[%clk 0:00:03]} 42. a4 {[%clk 0:00:02]}  f5 {[%clk 0:00:03]} 43. Rg1 {[%clk 0:00:03]}  g4 {[%clk 0:00:04]} 44. b4 {[%clk 0:00:03]}  f4 {[%clk 0:00:04]} 45. a5 {[%clk 0:00:04]}  g3 {[%clk 0:00:05]} 46. a6 {[%clk 0:00:04]}  Kf5 {[%clk 0:00:04]} 47. Kb3 {[%clk 0:00:04]}  Kg4 {[%clk 0:00:04]} 48. a7 {[%clk 0:00:05]}  Re8 {[%clk 0:00:04]} 49. b5 {[%clk 0:00:06]}  f3 {[%clk 0:00:05]} 50. b6 {[%clk 0:00:06]}  f2 {[%clk 0:00:05]} 51. Ra1 {[%clk 0:00:05]}  g2 {[%clk 0:00:06]} 52. b7 {[%clk 0:00:05]}  f1=Q {[%clk 0:00:06]} 53. a8=Q {[%clk 0:00:05]}  Qd3+ {[%clk 0:00:06]} 54. Kb4 {[%clk 0:00:05]}  Qd4+ {[%clk 0:00:07]} 55. Kb5 {[%clk 0:00:05]}  Re5+ {[%clk 0:00:07]} 56. Ka6 {[%clk 0:00:05]}  Qd6+ {[%clk 0:00:07]} 57. Ka7 {[%clk 0:00:05]}  Qc5+ {[%clk 0:00:08]} 58. Kb8 {[%clk 0:00:04]}  Re8# {[%clk 0:00:08]} 0-1


[Site "https://www.chess.com"]

[Event "Titled Tuesday Blitz February 14 Late 2023"]
[White "Vovk, Orest"]
[Black "Melkumyan, Hrant"]
[WhiteFideId "14113490"]
[BlackFideId "13302485"]
[WhiteElo "2315"]
[BlackElo "2645"]
[Result "0-1"]
[Round "02"]
[TimeControl "180+2"]
[Date "2023.02.14"]
[WhiteClock "0:00:58"]
[BlackClock "0:01:06"]

1. h4 {[%clk 0:02:52]}  d5 {[%clk 0:02:57]} 2. h5 {[%clk 0:02:50]}  e5 {[%clk 0:02:54]} 3. h6 {[%clk 0:02:49]}  Nxh6 {[%clk 0:02:52]} 4. d4 {[%clk 0:02:48]}  exd4 {[%clk 0:02:39]} 5. Bxh6 {[%clk 0:02:47]}  gxh6 {[%clk 0:02:40]} 6. Qxd4 {[%clk 0:02:47]}  Rg8 {[%clk 0:02:41]} 7. Nc3 {[%clk 0:02:47]}  Be6 {[%clk 0:02:40]} 8. O-O-O {[%clk 0:02:46]}  Nc6 {[%clk 0:02:40]} 9. Qa4 {[%clk 0:02:46]}  Bb4 {[%clk 0:02:31]} 10. Nf3 {[%clk 0:02:29]}  Bxc3 {[%clk 0:02:12]} 11. bxc3 {[%clk 0:02:23]}  Qf6 {[%clk 0:02:12]} 12. Kb2 {[%clk 0:02:13]}  Rg4 {[%clk 0:02:03]} 13. Qa3 {[%clk 0:02:01]}  Rb4+ {[%clk 0:01:54]} 14. Kc1 {[%clk 0:01:54]}  Rb6 {[%clk 0:01:45]} 15. e3 {[%clk 0:01:51]}  O-O-O {[%clk 0:01:43]} 16. Rh4 {[%clk 0:01:47]}  Kb8 {[%clk 0:01:38]} 17. Rf4 {[%clk 0:01:47]}  Qg7 {[%clk 0:01:36]} 18. Nd4 {[%clk 0:01:32]}  Nxd4 {[%clk 0:01:28]} 19. cxd4 {[%clk 0:01:29]}  a6 {[%clk 0:01:26]} 20. g3 {[%clk 0:01:26]}  Rdd6 {[%clk 0:01:21]} 21. Bd3 {[%clk 0:01:26]}  Ka7 {[%clk 0:01:19]} 22. Kd2 {[%clk 0:01:24]}  h5 {[%clk 0:01:14]} 23. Rh1 {[%clk 0:01:17]}  Bg4 {[%clk 0:01:14]} 24. f3 {[%clk 0:01:01]}  Bd7 {[%clk 0:01:13]} 25. Rxh5 {[%clk 0:00:59]}  Qxg3 {[%clk 0:01:10]} 26. Rxh7 {[%clk 0:00:58]}  Qf2+ {[%clk 0:01:06]} 27. Be2 {[%clk 0:00:58]}  Bb5 {[%clk 0:01:06]} 0-1


[Site "https://www.chess.com"]

[Event "Titled Tuesday Blitz February 14 Late 2023"]
[White "Remizov, Yaroslav"]
[Black "Pinheiro, Iung Alicio de O."]
[WhiteFideId "34134015"]
[BlackFideId "2104350"]
[WhiteElo "2421"]
[BlackElo "2306"]
[Result "1-0"]
[Round "02"]
[TimeControl "180+2"]
[Date "2023.02.14"]
[WhiteClock "0:00:33"]
[BlackClock "0:00:02"]

1. e4 {[%clk 0:02:59]}  c5 {[%clk 0:02:59]} 2. Nf3 {[%clk 0:02:59]}  Nc6 {[%clk 0:02:59]} 3. Bb5 {[%clk 0:02:57]}  e5 {[%clk 0:02:58]} 4. O-O {[%clk 0:02:56]}  Bd6 {[%clk 0:02:56]} 5. c3 {[%clk 0:02:56]}  a6 {[%clk 0:02:56]} 6. Bc4 {[%clk 0:02:56]}  b5 {[%clk 0:02:55]} 7. Bd5 {[%clk 0:02:56]}  Nge7 {[%clk 0:02:56]} 8. d4 {[%clk 0:02:56]}  cxd4 {[%clk 0:02:19]} 9. cxd4 {[%clk 0:02:57]}  exd4 {[%clk 0:02:07]} 10. Nxd4 {[%clk 0:02:57]}  O-O {[%clk 0:02:02]} 11. Bg5 {[%clk 0:02:52]}  Qc7 {[%clk 0:01:54]} 12. Nc3 {[%clk 0:02:47]}  Bb7 {[%clk 0:01:38]} 13. f4 {[%clk 0:02:34]}  Nxd4 {[%clk 0:01:34]} 14. Bxb7 {[%clk 0:02:33]}  Qxb7 {[%clk 0:00:55]} 15. Qxd4 {[%clk 0:02:33]}  Qc7 {[%clk 0:00:55]} 16. Kh1 {[%clk 0:02:27]}  f6 {[%clk 0:00:55]} 17. Rac1 {[%clk 0:02:13]}  Qb8 {[%clk 0:00:44]} 18. e5 {[%clk 0:01:55]}  fxg5 {[%clk 0:00:37]} 19. exd6 {[%clk 0:01:52]}  Nf5 {[%clk 0:00:36]} 20. Qd5+ {[%clk 0:01:52]}  Kh8 {[%clk 0:00:36]} 21. Ne4 {[%clk 0:01:43]}  Ne3 {[%clk 0:00:34]} 22. Qxg5 {[%clk 0:01:42]}  Nxf1 {[%clk 0:00:33]} 23. Rxf1 {[%clk 0:01:43]}  Qe8 {[%clk 0:00:33]} 24. Ng3 {[%clk 0:01:36]}  h6 {[%clk 0:00:32]} 25. Qd5 {[%clk 0:01:32]}  Rc8 {[%clk 0:00:32]} 26. h3 {[%clk 0:01:30]}  Rc2 {[%clk 0:00:31]} 27. f5 {[%clk 0:01:21]}  Qe3 {[%clk 0:00:29]} 28. Nh5 {[%clk 0:01:17]}  Qg5 {[%clk 0:00:28]} 29. Nf4 {[%clk 0:01:09]}  Rxf5 {[%clk 0:00:15]} 30. Ng6+ {[%clk 0:01:09]}  Qxg6 {[%clk 0:00:15]} 31. Rxf5 {[%clk 0:01:09]}  Rc8 {[%clk 0:00:08]} 32. Kh2 {[%clk 0:01:07]}  Kh7 {[%clk 0:00:07]} 33. Rf7 {[%clk 0:00:58]}  Rc5 {[%clk 0:00:02]} 34. Rxg7+ {[%clk 0:00:57]}  Qxg7 {[%clk 0:00:02]} 35. Qxc5 {[%clk 0:00:57]}  Qxb2 {[%clk 0:00:03]} 36. Qf5+ {[%clk 0:00:58]}  Kg8 {[%clk 0:00:02]} 37. Qd5+ {[%clk 0:00:45]}  Kg7 {[%clk 0:00:01]} 38. Qf5 {[%clk 0:00:40]}  Qf6 {[%clk 0:00:02]} 39. Qxd7+ {[%clk 0:00:40]}  Kg6 {[%clk 0:00:02]} 40. Qg4+ {[%clk 0:00:40]}  Kh7 {[%clk 0:00:02]} 41. d7 {[%clk 0:00:38]}  Qd6+ {[%clk 0:00:02]} 42. Kg1 {[%clk 0:00:37]}  a5 {[%clk 0:00:02]} 43. Qf5+ {[%clk 0:00:33]}  Kg7 {[%clk 0:00:03]} 44. Qxb5 {[%clk 0:00:33]}  Qd4+ {[%clk 0:00:03]} 45. Kf1 {[%clk 0:00:33]}  Qd1+ {[%clk 0:00:03]} 46. Kf2 {[%clk 0:00:33]}  Qd2+ {[%clk 0:00:03]} 47. Kf3 {[%clk 0:00:33]}  Qd1+ {[%clk 0:00:03]} 48. Ke4 {[%clk 0:00:34]}  Qe1+ {[%clk 0:00:02]} 49. Kd5 {[%clk 0:00:33]} 1-0


[Site "https://www.chess.com"]

[Event "Titled Tuesday Blitz February 14 Late 2023"]
[White "Suder, Jakub"]
[Black "Samsonkin, Artiom"]
[WhiteFideId "1195310"]
[BlackFideId "13503111"]
[WhiteElo "2244"]
[BlackElo "2420"]
[Result "0-1"]
[Round "02"]
[TimeControl "180+2"]
[Date "2023.02.14"]
[WhiteClock "0:00:42"]
[BlackClock "0:00:46"]

1. d4 {[%clk 0:03:00]}  d5 {[%clk 0:03:00]} 2. c4 {[%clk 0:02:59]}  e6 {[%clk 0:03:00]} 3. Nc3 {[%clk 0:02:59]}  c5 {[%clk 0:03:00]} 4. cxd5 {[%clk 0:02:43]}  cxd4 {[%clk 0:03:00]} 5. Qa4+ {[%clk 0:02:34]}  Qd7 {[%clk 0:02:38]} 6. Qxd4 {[%clk 0:02:07]}  exd5 {[%clk 0:02:38]} 7. e4 {[%clk 0:02:02]}  dxe4 {[%clk 0:02:14]} 8. Bb5 {[%clk 0:02:02]}  Nc6 {[%clk 0:02:14]} 9. Qxe4+ {[%clk 0:02:01]}  Be7 {[%clk 0:02:11]} 10. Bg5 {[%clk 0:01:54]}  Qe6 {[%clk 0:01:48]} 11. Nf3 {[%clk 0:01:39]}  Nf6 {[%clk 0:01:39]} 12. Qxe6 {[%clk 0:01:37]}  Bxe6 {[%clk 0:01:40]} 13. Nd4 {[%clk 0:01:36]}  Bd7 {[%clk 0:01:39]} 14. Nxc6 {[%clk 0:01:36]}  bxc6 {[%clk 0:01:40]} 15. Bc4 {[%clk 0:01:34]}  h6 {[%clk 0:01:37]} 16. Bh4 {[%clk 0:01:32]}  O-O {[%clk 0:01:28]} 17. O-O-O {[%clk 0:01:30]}  Bf5 {[%clk 0:01:25]} 18. Rhe1 {[%clk 0:01:28]}  Rfe8 {[%clk 0:01:25]} 19. f3 {[%clk 0:01:24]}  Bc5 {[%clk 0:01:16]} 20. Bxf6 {[%clk 0:01:03]}  gxf6 {[%clk 0:01:15]} 21. Bd3 {[%clk 0:01:03]}  Rxe1 {[%clk 0:01:09]} 22. Bxf5 {[%clk 0:01:01]}  Rxd1+ {[%clk 0:01:05]} 23. Kxd1 {[%clk 0:01:02]}  Rd8+ {[%clk 0:01:05]} 24. Kc2 {[%clk 0:01:01]}  Kg7 {[%clk 0:00:57]} 25. Be4 {[%clk 0:01:01]}  Be3 {[%clk 0:00:54]} 26. Bd3 {[%clk 0:00:57]}  c5 {[%clk 0:00:54]} 27. Ne4 {[%clk 0:00:56]}  f5 {[%clk 0:00:51]} 28. Ng3 {[%clk 0:00:55]}  f4 {[%clk 0:00:52]} 29. Ne4 {[%clk 0:00:51]}  f5 {[%clk 0:00:47]} 30. Nc3 {[%clk 0:00:50]}  Kf6 {[%clk 0:00:47]} 31. g3 {[%clk 0:00:47]}  c4 {[%clk 0:00:45]} 32. Bxc4 {[%clk 0:00:46]}  Rd2+ {[%clk 0:00:46]} 33. Kb3 {[%clk 0:00:46]}  Rxh2 {[%clk 0:00:47]} 34. gxf4 {[%clk 0:00:46]}  Bxf4 {[%clk 0:00:47]} 35. Nd5+ {[%clk 0:00:46]}  Ke5 {[%clk 0:00:47]} 36. Ne7 {[%clk 0:00:47]}  Bg5 {[%clk 0:00:46]} 37. Ng6+ {[%clk 0:00:42]} 0-1


[Site "https://www.chess.com"]

[Event "Titled Tuesday Blitz February 14 Late 2023"]
[White "Boros, Denes"]
[Black "Pham, Khoi"]
[WhiteFideId "722340"]
[BlackFideId "1054988"]
[WhiteElo "2406"]
[BlackElo "2355"]
[Result "1-0"]
[Round "02"]
[TimeControl "180+2"]
[Date "2023.02.14"]
[WhiteClock "0:00:19"]
[BlackClock "0:00:03"]

1. d4 {[%clk 0:02:49]}  d5 {[%clk 0:02:56]} 2. Nc3 {[%clk 0:02:50]}  Nf6 {[%clk 0:02:53]} 3. Nf3 {[%clk 0:02:49]}  g6 {[%clk 0:02:54]} 4. Ne5 {[%clk 0:02:46]}  Bg7 {[%clk 0:02:53]} 5. Bg5 {[%clk 0:02:46]}  Nbd7 {[%clk 0:02:52]} 6. e3 {[%clk 0:02:46]}  c6 {[%clk 0:02:51]} 7. Bd3 {[%clk 0:02:42]}  Nxe5 {[%clk 0:02:46]} 8. dxe5 {[%clk 0:02:43]}  Nd7 {[%clk 0:02:46]} 9. e6 {[%clk 0:02:43]}  fxe6 {[%clk 0:02:45]} 10. h4 {[%clk 0:02:44]}  Ne5 {[%clk 0:02:42]} 11. h5 {[%clk 0:02:44]}  Nxd3+ {[%clk 0:02:42]} 12. Qxd3 {[%clk 0:02:45]}  e5 {[%clk 0:02:35]} 13. e4 {[%clk 0:02:28]}  d4 {[%clk 0:02:28]} 14. Ne2 {[%clk 0:02:26]}  Be6 {[%clk 0:02:18]} 15. c3 {[%clk 0:02:17]}  Qa5 {[%clk 0:02:17]} 16. b4 {[%clk 0:02:11]}  Qb6 {[%clk 0:02:10]} 17. a3 {[%clk 0:02:05]}  h6 {[%clk 0:01:48]} 18. Bd2 {[%clk 0:01:53]}  O-O-O {[%clk 0:01:45]} 19. c4 {[%clk 0:01:48]}  g5 {[%clk 0:01:43]} 20. a4 {[%clk 0:01:44]}  Rhf8 {[%clk 0:01:38]} 21. O-O {[%clk 0:01:39]}  Qc7 {[%clk 0:01:34]} 22. c5 {[%clk 0:01:33]}  Bg4 {[%clk 0:01:26]} 23. Ng3 {[%clk 0:01:30]}  Qd7 {[%clk 0:01:15]} 24. b5 {[%clk 0:01:30]}  Qe8 {[%clk 0:01:04]} 25. Rab1 {[%clk 0:01:27]}  cxb5 {[%clk 0:00:48]} 26. axb5 {[%clk 0:01:15]}  Rf6 {[%clk 0:00:28]} 27. Ra1 {[%clk 0:01:05]}  Kb8 {[%clk 0:00:25]} 28. Rfb1 {[%clk 0:01:02]}  Qf8 {[%clk 0:00:19]} 29. Qa3 {[%clk 0:00:58]}  Rxf2 {[%clk 0:00:13]} 30. Be1 {[%clk 0:00:43]}  Rf6 {[%clk 0:00:07]} 31. Qxa7+ {[%clk 0:00:40]}  Kc7 {[%clk 0:00:07]} 32. c6 {[%clk 0:00:40]}  Kd6 {[%clk 0:00:07]} 33. cxb7 {[%clk 0:00:34]}  Ke6 {[%clk 0:00:04]} 34. Qa2+ {[%clk 0:00:33]}  Kd7 {[%clk 0:00:04]} 35. Rc1 {[%clk 0:00:30]}  Ke8 {[%clk 0:00:02]} 36. Rc7 {[%clk 0:00:24]}  Be6 {[%clk 0:00:02]} 37. Qc2 {[%clk 0:00:19]}  Kf7 {[%clk 0:00:03]} 38. Nf5 {[%clk 0:00:19]} 1-0


[Site "https://www.chess.com"]

[Event "Titled Tuesday Blitz February 14 Late 2023"]
[White "Djokic, Mihailo"]
[Black "Avinash, Ramesh"]
[WhiteFideId "976440"]
[BlackFideId "45018340"]
[WhiteElo "2192"]
[BlackElo "2319"]
[Result "0-1"]
[Round "02"]
[TimeControl "180+2"]
[Date "2023.02.14"]
[WhiteClock "0:00:12"]
[BlackClock "0:01:34"]

1. e4 {[%clk 0:03:00]}  e6 {[%clk 0:03:00]} 2. d4 {[%clk 0:03:01]}  d5 {[%clk 0:03:00]} 3. Nd2 {[%clk 0:03:01]}  Nf6 {[%clk 0:02:57]} 4. Bd3 {[%clk 0:02:58]}  c5 {[%clk 0:02:56]} 5. c3 {[%clk 0:02:51]}  cxd4 {[%clk 0:02:55]} 6. cxd4 {[%clk 0:02:49]}  dxe4 {[%clk 0:02:53]} 7. Nxe4 {[%clk 0:02:47]}  Nxe4 {[%clk 0:02:53]} 8. Bxe4 {[%clk 0:02:47]}  Bb4+ {[%clk 0:02:53]} 9. Bd2 {[%clk 0:02:44]}  Bxd2+ {[%clk 0:02:52]} 10. Qxd2 {[%clk 0:02:44]}  Nd7 {[%clk 0:02:53]} 11. Rc1 {[%clk 0:02:41]}  Nf6 {[%clk 0:02:52]} 12. Bf3 {[%clk 0:02:40]}  O-O {[%clk 0:02:51]} 13. Ne2 {[%clk 0:02:40]}  Rb8 {[%clk 0:02:50]} 14. O-O {[%clk 0:02:34]}  b6 {[%clk 0:02:50]} 15. Rfd1 {[%clk 0:02:29]}  Bb7 {[%clk 0:02:50]} 16. Bxb7 {[%clk 0:02:29]}  Rxb7 {[%clk 0:02:51]} 17. Qb4 {[%clk 0:02:25]}  Qd7 {[%clk 0:02:46]} 18. Rc2 {[%clk 0:02:20]}  Rc8 {[%clk 0:02:46]} 19. Rdc1 {[%clk 0:02:20]}  Rbc7 {[%clk 0:02:44]} 20. Rxc7 {[%clk 0:02:16]}  Rxc7 {[%clk 0:02:44]} 21. Rxc7 {[%clk 0:02:10]}  Qxc7 {[%clk 0:02:45]} 22. Nc3 {[%clk 0:02:10]}  h5 {[%clk 0:02:41]} 23. h3 {[%clk 0:02:10]}  Qf4 {[%clk 0:02:39]} 24. Qe7 {[%clk 0:02:00]}  Qc1+ {[%clk 0:02:36]} 25. Kh2 {[%clk 0:01:59]}  Qxb2 {[%clk 0:02:36]} 26. Qc7 {[%clk 0:01:43]}  Qxf2 {[%clk 0:02:36]} 27. Qe5 {[%clk 0:01:25]}  h4 {[%clk 0:02:30]} 28. a4 {[%clk 0:01:24]}  g6 {[%clk 0:02:16]} 29. Nb5 {[%clk 0:01:18]}  Nh5 {[%clk 0:02:11]} 30. Qb8+ {[%clk 0:01:03]}  Kh7 {[%clk 0:02:11]} 31. Qc7 {[%clk 0:01:03]}  Ng3 {[%clk 0:01:49]} 32. Nd6 {[%clk 0:00:51]}  Kg7 {[%clk 0:01:47]} 33. Ne8+ {[%clk 0:00:50]}  Kh6 {[%clk 0:01:48]} 34. Qe5 {[%clk 0:00:44]}  Qf1 {[%clk 0:01:47]} 35. Qe3+ {[%clk 0:00:26]}  g5 {[%clk 0:01:41]} 36. Qg1 {[%clk 0:00:27]}  Qxg1+ {[%clk 0:01:39]} 37. Kxg1 {[%clk 0:00:26]}  Ne2+ {[%clk 0:01:40]} 38. Kf2 {[%clk 0:00:27]}  Nxd4 {[%clk 0:01:41]} 39. Nd6 {[%clk 0:00:25]}  Kg6 {[%clk 0:01:36]} 40. Nc8 {[%clk 0:00:25]}  b5 {[%clk 0:01:36]} 41. a5 {[%clk 0:00:23]}  a6 {[%clk 0:01:35]} 42. Ke3 {[%clk 0:00:16]}  Nc6 {[%clk 0:01:34]} 43. Ke4 {[%clk 0:00:11]}  Nxa5 {[%clk 0:01:34]} 44. Ne7+ {[%clk 0:00:12]}  Kf6 {[%clk 0:01:34]} 45. Nc6 {[%clk 0:00:12]}  Nxc6 {[%clk 0:01:34]} 0-1


[Site "https://www.chess.com"]

[Event "Titled Tuesday Blitz February 14 Late 2023"]
[White "Yuan, Qingyu"]
[Black "Aldokhin, Ivan"]
[WhiteFideId "8609772"]
[BlackFideId "24115720"]
[WhiteElo "2373"]
[BlackElo "2413"]
[Result "1-0"]
[Round "02"]
[TimeControl "180+2"]
[Date "2023.02.14"]
[WhiteClock "0:00:06"]
[BlackClock "0:00:03"]

1. e4 {[%clk 0:03:00]}  c5 {[%clk 0:02:40]} 2. Nf3 {[%clk 0:02:59]}  e6 {[%clk 0:02:41]} 3. c3 {[%clk 0:02:59]}  Nf6 {[%clk 0:02:40]} 4. e5 {[%clk 0:02:59]}  Nd5 {[%clk 0:02:41]} 5. g3 {[%clk 0:03:00]}  b6 {[%clk 0:02:41]} 6. Bg2 {[%clk 0:03:00]}  Bb7 {[%clk 0:02:41]} 7. O-O {[%clk 0:03:00]}  d6 {[%clk 0:02:41]} 8. exd6 {[%clk 0:03:01]}  Bxd6 {[%clk 0:02:40]} 9. d4 {[%clk 0:02:55]}  O-O {[%clk 0:02:38]} 10. Nbd2 {[%clk 0:02:46]}  Nc6 {[%clk 0:02:31]} 11. Ne4 {[%clk 0:02:39]}  cxd4 {[%clk 0:02:24]} 12. Nxd6 {[%clk 0:02:35]}  Qxd6 {[%clk 0:02:23]} 13. Nxd4 {[%clk 0:02:36]}  Nxd4 {[%clk 0:02:21]} 14. Qxd4 {[%clk 0:02:36]}  e5 {[%clk 0:02:21]} 15. Qd3 {[%clk 0:02:29]}  Rad8 {[%clk 0:01:52]} 16. Rd1 {[%clk 0:01:57]}  Qc7 {[%clk 0:01:31]} 17. Qe2 {[%clk 0:01:48]}  f6 {[%clk 0:01:18]} 18. a4 {[%clk 0:01:29]}  Ne7 {[%clk 0:01:05]} 19. Be3 {[%clk 0:01:24]}  Bxg2 {[%clk 0:01:04]} 20. Kxg2 {[%clk 0:01:25]}  f5 {[%clk 0:00:55]} 21. Bg5 {[%clk 0:01:16]}  Rxd1 {[%clk 0:00:33]} 22. Rxd1 {[%clk 0:01:13]}  Ng6 {[%clk 0:00:32]} 23. Qb5 {[%clk 0:01:04]}  f4 {[%clk 0:00:25]} 24. Rd7 {[%clk 0:00:51]}  Qc8 {[%clk 0:00:24]} 25. Qd5+ {[%clk 0:00:45]}  Kh8 {[%clk 0:00:23]} 26. f3 {[%clk 0:00:31]}  e4 {[%clk 0:00:20]} 27. Rd8 {[%clk 0:00:20]}  exf3+ {[%clk 0:00:12]} 28. Kxf3 {[%clk 0:00:14]}  fxg3+ {[%clk 0:00:11]} 29. Kxg3 {[%clk 0:00:12]}  Qc7+ {[%clk 0:00:08]} 30. Kg2 {[%clk 0:00:11]}  Rxd8 {[%clk 0:00:05]} 31. Qxd8+ {[%clk 0:00:11]}  Qxd8 {[%clk 0:00:05]} 32. Bxd8 {[%clk 0:00:12]}  Nf4+ {[%clk 0:00:06]} 33. Kf3 {[%clk 0:00:11]}  Nd3 {[%clk 0:00:06]} 34. b4 {[%clk 0:00:08]}  Kg8 {[%clk 0:00:04]} 35. Ke4 {[%clk 0:00:08]}  Nb2 {[%clk 0:00:03]} 36. a5 {[%clk 0:00:08]}  bxa5 {[%clk 0:00:04]} 37. bxa5 {[%clk 0:00:08]}  a6 {[%clk 0:00:03]} 38. Kd5 {[%clk 0:00:08]}  Kf7 {[%clk 0:00:03]} 39. Bb6 {[%clk 0:00:06]}  g5 {[%clk 0:00:02]} 40. c4 {[%clk 0:00:03]}  Ke7 {[%clk 0:00:02]} 41. c5 {[%clk 0:00:03]}  Kd7 {[%clk 0:00:02]} 42. c6+ {[%clk 0:00:04]}  Kc8 {[%clk 0:00:03]} 43. Ke5 {[%clk 0:00:04]}  Nd3+ {[%clk 0:00:03]} 44. Kf5 {[%clk 0:00:04]}  h6 {[%clk 0:00:03]} 45. Kg6 {[%clk 0:00:04]}  Ne1 {[%clk 0:00:03]} 46. Kxh6 {[%clk 0:00:04]}  g4 {[%clk 0:00:03]} 47. Kh5 {[%clk 0:00:03]}  Nf3 {[%clk 0:00:03]} 48. Kxg4 {[%clk 0:00:03]}  Nxh2+ {[%clk 0:00:04]} 49. Kf4 {[%clk 0:00:02]}  Nf1 {[%clk 0:00:04]} 50. Ke5 {[%clk 0:00:02]}  Nd2 {[%clk 0:00:04]} 51. Kd4 {[%clk 0:00:02]}  Nf3+ {[%clk 0:00:03]} 52. Kd5 {[%clk 0:00:03]}  Nd2 {[%clk 0:00:04]} 53. Kd6 {[%clk 0:00:03]}  Nc4+ {[%clk 0:00:03]} 54. Kc5 {[%clk 0:00:03]}  Ne5 {[%clk 0:00:03]} 55. Ba7 {[%clk 0:00:04]}  Nd3+ {[%clk 0:00:02]} 56. Kb6 {[%clk 0:00:04]}  Ne5 {[%clk 0:00:02]} 57. Kc5 {[%clk 0:00:03]}  Nd3+ {[%clk 0:00:01]} 58. Kd6 {[%clk 0:00:03]}  Nb4 {[%clk 0:00:01]} 59. Bd4 {[%clk 0:00:03]}  Nd3 {[%clk 0:00:01]} 60. Be5 {[%clk 0:00:03]}  Nb4 {[%clk 0:00:02]} 61. Bh2 {[%clk 0:00:03]}  Nd3 {[%clk 0:00:02]} 62. Kd5 {[%clk 0:00:03]}  Nb2 {[%clk 0:00:03]} 63. Kc5 {[%clk 0:00:03]}  Nd3+ {[%clk 0:00:03]} 64. Kb6 {[%clk 0:00:03]}  Nb4 {[%clk 0:00:03]} 65. Bg3 {[%clk 0:00:03]}  Nd5+ {[%clk 0:00:03]} 66. Kxa6 {[%clk 0:00:04]}  Nb4+ {[%clk 0:00:02]} 67. Kb5 {[%clk 0:00:04]}  Nd5 {[%clk 0:00:02]} 68. a6 {[%clk 0:00:04]}  Nc3+ {[%clk 0:00:02]} 69. Kb6 {[%clk 0:00:04]}  Ne4 {[%clk 0:00:02]} 70. Bh2 {[%clk 0:00:04]}  Nd6 {[%clk 0:00:01]} 71. Bxd6 {[%clk 0:00:04]}  Kd8 {[%clk 0:00:01]} 72. a7 {[%clk 0:00:04]}  Ke8 {[%clk 0:00:02]} 73. a8=Q+ {[%clk 0:00:05]}  Kf7 {[%clk 0:00:02]} 74. Qf8+ {[%clk 0:00:05]}  Ke6 {[%clk 0:00:03]} 75. Qe7+ {[%clk 0:00:05]}  Kd5 {[%clk 0:00:02]} 76. Qe5+ {[%clk 0:00:06]}  Kc4 {[%clk 0:00:02]} 77. Qc5+ {[%clk 0:00:06]}  Kb3 {[%clk 0:00:03]} 78. c7 {[%clk 0:00:06]} 1-0


[Site "https://www.chess.com"]